fUSD/lending_fUSD_20250126
["ID","MTS","AMOUNT","RATE_DAILY","PERIOD"]
[350464162,1737899875527,-253.07,0.00010828,2]
[350464163,1737899875552,-246.55,0.00010828,2]
[350464164,1737899875576,-251.49,0.00010828,2]
[350464165,1737899875599,-483.5,0.00010828,2]
[350464166,1737899875622,-922.1753,0.00010858,2]
[350464167,1737899875645,-866.32397,0.0001089,2]
[350464168,1737899875668,-1284.0,0.000109,2]
[350464169,1737899875691,-298.24,0.000109,2]
[350464170,1737899875715,-500.0,0.000109,3]
[350464171,1737899875740,-2927.96073,0.000109,2]
[350464172,1737899917590,-254.56,0.000106,2]
[350464173,1737899917615,-150.99,0.000106,2]
[350464174,1737899917638,-1876.35,0.000106,2]
[350464175,1737899917661,-1718.1,0.000106,2]
[350464177,1737899940009,-8281.89,0.000106,2]
[350464178,1737899940035,-248.34,0.000106,2]
[350464179,1737899940061,-248.71,0.000106,2]
[350464180,1737899940087,-249.05,0.000106,2]
[350464181,1737899940113,-551.79120189,0.000109,2]
[350464182,1737899940137,-3479.75193173,0.00010934,2]
[350464183,1737899940165,-4464.7820845,0.00010939,2]
[350464184,1737899940190,-2475.68478188,0.00010953,2]
[350464185,1737899968434,-251.47,0.000106,2]
[350464186,1737899968461,-249.84,0.000106,2]
[350464187,1737899968485,-170.57070841,0.00010904,2]
[350464188,1737899968512,-208.26,0.00010918,2]
[350464189,1737899968543,-208.26,0.00010947,2]
[350464190,1737899968571,-1989.09730262,0.00010953,2]
[350464191,1737899968598,-151.0,0.00010958,2]
[350464192,1737899968623,-152.872776,0.00010958,2]
[350464193,1737899968649,-500.0,0.00010958,2]
[350464194,1737899968674,-500.0,0.00010958,2]
[350464195,1737899968699,-500.0,0.00010958,2]
[350464196,1737899968725,-118.62921297,0.00010958,2]
[350464198,1737900043714,1138.31,0.00016658,30]
[350464212,1737900485973,267.58,8.219e-05,2]
[350464287,1737900632413,-250.0,0.00010017,2]
[350464288,1737900632422,-179.73,0.00010025,2]
[350464289,1737900632433,-531.62000627,0.00010046,2]
[350464294,1737900632641,-1035.46999373,0.00010046,2]
[350464296,1737900632650,-1000.0,0.00010047,2]
[350464298,1737900632659,-231.04154655,0.00010055,2]
[350464452,1737900638094,-18.95845345,0.00010055,2]
[350464453,1737900638104,-267.58,0.00010479,2]
[350464454,1737900638115,-152.43,0.00010546,2]
[350464455,1737900638125,-151.25,0.00010546,2]
[350464456,1737900638134,-151.59,0.00010546,2]
[350464457,1737900638145,-249.89,0.000106,2]
[350464458,1737900638156,-500.0,0.000106,2]
[350464459,1737900638166,-305.24154511,0.000106,2]
[350464460,1737900638175,-247.9,0.000106,2]
[350464461,1737900638185,-247.93,0.000106,2]
[350464462,1737900638195,-251.11,0.000106,2]
[350464463,1737900638204,-250.4,0.000106,2]
[350464464,1737900638214,-248.51,0.000106,2]
[350464465,1737900638224,-247.77,0.000106,2]
[350464466,1737900638233,-250.75,0.000106,2]
[350464467,1737900638242,-251.07,0.000106,2]
[350464468,1737900638252,-253.63,0.000106,2]
[350464469,1737900638261,-150.0,0.00010688,2]
[350464470,1737900638270,-3905.0,0.00010688,2]
[350464471,1737900638279,-500.0,0.00010932,2]
[350464472,1737900638288,-608.75,0.00010958,2]
[350464473,1737900638298,-220.745,0.00010958,2]
[350464474,1737900638307,-500.0,0.00010958,2]
[350464475,1737900638316,-500.0,0.00010958,2]
[350464477,1737900638325,-500.0,0.00010958,2]
[350464478,1737900638334,-470.97149305,0.00010958,2]
[350464480,1737900638344,-528.92,0.00010958,2]
[350464482,1737900638353,-500.0,0.00010958,2]
[350464484,1737900638362,-500.0,0.00010958,2]
[350464486,1737900638371,-500.0,0.00010958,2]
[350464488,1737900638379,-500.0,0.00010958,2]
[350464490,1737900638388,-646.92,0.00010958,2]
[350464492,1737900638397,-500.0,0.00010958,2]
[350464494,1737900638407,-500.0,0.00010958,2]
[350464496,1737900638415,-500.0,0.00010958,2]
[350464498,1737900638424,-500.0,0.00010958,2]
[350464500,1737900638433,-500.0,0.00010958,2]
[350464502,1737900638442,-500.0,0.00010958,2]
[350464504,1737900638451,-451.73,0.00010958,2]
[350464506,1737900638460,-500.0,0.00010958,2]
[350464508,1737900638469,-500.0,0.00010958,2]
[350464509,1737900638478,-500.0,0.00010958,2]
[350464511,1737900638487,-500.0,0.00010958,2]
[350464513,1737900638496,-500.0,0.00010958,2]
[350464515,1737900638505,-520.14437344,0.00010958,2]
[350464517,1737900638514,-500.0,0.00010958,2]
[350464519,1737900638523,-500.0,0.00010958,2]
[350464521,1737900638532,-500.0,0.00010958,2]
[350464523,1737900638541,-500.0,0.00010958,2]
[350464525,1737900638550,-500.0,0.00010958,2]
[350464527,1737900638560,-199.98,0.00010958,2]
[350464529,1737900638568,-500.0,0.00010958,2]
[350464531,1737900638577,-538.37,0.00010958,2]
[350464533,1737900638586,-500.0,0.00010958,2]
[350464535,1737900638596,-500.0,0.00010958,2]
[350464537,1737900638605,-280.63,0.00010958,2]
[350464539,1737900638614,-500.0,0.00010958,2]
[350464541,1737900638623,-457.85,0.00010958,2]
[350464543,1737900638632,-500.0,0.00010958,2]
[350464545,1737900638641,-500.0,0.00010958,2]
[350464547,1737900638650,-500.0,0.00010958,2]
[350464549,1737900638659,-500.0,0.00010958,2]
[350464551,1737900638668,-500.0,0.00010958,2]
[350464553,1737900638677,-500.0,0.00010958,2]
[350464555,1737900638686,-500.0,0.00010958,2]
[350464557,1737900638695,-500.0,0.00010958,2]
[350464558,1737900638705,-430.75,0.00010958,2]
[350464559,1737900638714,-500.0,0.00010958,2]
[350464560,1737900638723,-500.0,0.00010958,2]
[350464561,1737900638732,-128.91247536,0.00010958,2]
[350464562,1737900638763,-371.08752464,0.00010958,2]
[350464563,1737900638772,-420.65,0.00010958,2]
[350464564,1737900638781,-500.0,0.00010958,2]
[350464565,1737900638791,-194.15,0.00010958,2]
[350464566,1737900638800,-500.0,0.00010958,2]
[350464567,1737900638809,-342.6,0.00010958,2]
[350464568,1737900638819,-500.0,0.00010958,2]
[350464569,1737900638828,-499.42315549,0.00010958,2]
[350464570,1737900638840,-0.57684451,0.00010958,2]
[350464571,1737900638850,-343.33915549,0.00010958,2]
[350464572,1737900638861,-120.77084451,0.00010958,2]
[350464573,1737900638870,-500.0,0.00010958,2]
[350464574,1737900638879,-500.0,0.00010958,2]
[350464575,1737900638888,-248.79154723,0.00010958,2]
[350464576,1737900638899,-500.0,0.00010958,2]
[350464577,1737900638909,-617.35,0.00010958,2]
[350464578,1737900638919,-500.0,0.00010958,2]
[350464579,1737900638928,-500.0,0.00010958,2]
[350464580,1737900638937,-310.11,0.00010958,2]
[350464581,1737900638947,-500.0,0.00010958,2]
[350464582,1737900638957,-500.0,0.00010958,2]
[350464583,1737900638966,-500.0,0.00010958,2]
[350464584,1737900638975,-500.0,0.00010958,2]
[350464585,1737900638984,-500.0,0.00010958,2]
[350464586,1737900638993,-500.0,0.00010958,2]
[350464587,1737900639003,-500.0,0.00010958,2]
[350464588,1737900639012,-500.0,0.00010958,2]
[350464589,1737900639021,-500.0,0.00010958,2]
[350464590,1737900639030,-500.0,0.00010958,2]
[350464591,1737900639039,-500.0,0.00010958,2]
[350464592,1737900639048,-601.3,0.00010958,2]
[350464593,1737900639057,-500.0,0.00010958,2]
[350464594,1737900639066,-748.07,0.00010958,2]
[350464595,1737900639075,-500.0,0.00010958,2]
[350464596,1737900639084,-500.0,0.00010958,2]
[350464597,1737900639093,-459.09,0.00010958,2]
[350464598,1737900639102,-500.0,0.00010958,2]
[350464599,1737900639112,-597.72,0.00010958,2]
[350464600,1737900639121,-500.0,0.00010958,2]
[350464601,1737900639130,-906.1,0.00010958,2]
[350464602,1737900639139,-906.1,0.00010958,2]
[350464603,1737900639148,-153.78,0.00010958,2]
[350464604,1737900639158,-500.0,0.00010958,2]
[350464605,1737900639167,-225.1287025,0.00010958,2]
[350464606,1737900639176,-500.0,0.00010958,2]
[350464607,1737900639185,-500.0,0.00010958,2]
[350464608,1737900639195,-220.921057,0.00010958,2]
[350464609,1737900639204,-500.0,0.00010958,2]
[350464610,1737900639213,-500.0,0.00010958,2]
[350464611,1737900639222,-500.0,0.00010958,2]
[350464612,1737900639231,-500.0,0.00010958,2]
[350464613,1737900639240,-500.0,0.00010958,2]
[350464614,1737900639250,-500.0,0.00010958,2]
[350464615,1737900639259,-1275.1,0.00010958,2]
[350464616,1737900639269,-1275.1,0.00010958,2]
[350464617,1737900639278,-500.0,0.00010958,2]
[350464618,1737900639287,-500.0,0.00010958,2]
[350464619,1737900639297,-500.0,0.00010958,2]
[350464620,1737900639305,-500.0,0.00010958,2]
[350464621,1737900639315,-500.0,0.00010958,2]
[350464622,1737900639324,-500.0,0.00010958,2]
[350464623,1737900639333,-500.0,0.00010958,2]
[350464624,1737900639342,-500.0,0.00010958,2]
[350464625,1737900639351,-531.31,0.00010958,2]
[350464626,1737900639360,-531.31,0.00010958,2]
[350464627,1737900639370,-500.0,0.00010958,2]
[350464628,1737900639379,-448.54,0.00010958,2]
[350464629,1737900639389,-529.39,0.00010958,2]
[350464630,1737900639398,-1000.0,0.00010958,2]
[350464631,1737900639407,-500.0,0.00010958,2]
[350464632,1737900639416,-1000.0,0.00010958,2]
[350464633,1737900639426,-1000.0,0.00010958,2]
[350464634,1737900639435,-264.834433,0.00010958,2]
[350464635,1737900639444,-500.0,0.00010958,2]
[350464636,1737900639454,-707.75,0.00010958,2]
[350464637,1737900639463,-707.75,0.00010958,2]
[350464638,1737900639473,-500.0,0.00010958,2]
[350464639,1737900639482,-500.0,0.00010958,2]
[350464640,1737900639702,-500.0,0.00010958,2]
[350464641,1737900639719,-500.0,0.00010958,2]
[350464642,1737900639729,-500.0,0.00010958,2]
[350464643,1737900639739,-500.0,0.00010958,2]
[350464644,1737900639751,-500.0,0.00010958,2]
[350464645,1737900639762,-500.0,0.00010958,2]
[350464646,1737900639771,-508.88322705,0.00010958,2]
[350464647,1737900639781,-500.0,0.00010958,2]
[350464648,1737900639792,-3292.67,0.00010958,2]
[350464649,1737900639801,-3292.67,0.00010958,2]
[350464650,1737900639811,-3085.66,0.00010958,2]
[350464651,1737900639821,-3085.66,0.00010958,2]
[350464652,1737900639830,-500.0,0.00010958,2]
[350464653,1737900639841,-500.0,0.00010958,2]
[350464654,1737900639851,-500.0,0.00010958,2]
[350464655,1737900639860,-969.55,0.00010958,2]
[350464656,1737900639869,-969.55,0.00010958,2]
[350464657,1737900639878,-969.55,0.00010958,2]
[350464658,1737900639887,-500.0,0.00010958,2]
[350464659,1737900639896,-500.0,0.00010958,2]
[350464660,1737900639906,-101.70928371,0.00010958,2]
[350464671,1737900640782,-3.7097688,0.00010958,2]
[350464672,1737900640794,-394.58094749,0.00010958,2]
[350464673,1737900640804,-500.0,0.00010958,2]
[350464674,1737900640813,-500.0,0.00010958,2]
[350464675,1737900640823,-500.0,0.00010958,2]
[350464676,1737900640834,-599.46,0.00010958,2]
[350464677,1737900640844,-1988.81321921,0.00010958,2]
[350464683,1737900643413,-1070.04678079,0.00010958,2]
[350464684,1737900643423,-397.30079261,0.00010958,2]
[350464685,1737900643627,-2188.06544361,0.00010958,2]
[350464686,1737900646118,-473.49376378,0.00010958,2]
[350464687,1737900646127,-500.0,0.00010958,2]
[350464688,1737900646136,-97.37603622,0.00010958,2]
[350464689,1737900646314,-999.67386818,0.00010958,2]
[350464690,1737900646326,-1961.8100956,0.00010958,2]
[350464691,1737900646336,-2693.43,0.00010958,2]
[350464692,1737900646346,-500.0,0.00010958,2]
[350464693,1737900646356,-357.33597089,0.00010958,2]
[350464694,1737900646421,-376.25313655,0.00010958,2]
[350464699,1737900896430,1081.39,0.00016658,30]
[350464700,1737900908095,5886.0,0.00022,120]
[350464727,1737901648881,1026.90064398,0.00022,120]
[350464729,1737901727030,1027.32,0.00016658,30]
[350464732,1737901765139,-353.33,9.697e-05,2]
[350464733,1737901765161,-500.0,9.74e-05,2]
[350464734,1737901765181,-3148.91,9.785e-05,2]
[350464735,1737901765203,-662.428386,9.819e-05,2]
[350464740,1737901828802,251.26,8.219e-05,2]
[350464743,1737901832454,-242.16,9.819e-05,2]
[350464744,1737901832464,-1000.0,9.854e-05,2]
[350464745,1737901832473,-250.0,9.854e-05,2]
[350464746,1737901832483,-250.0,9.886e-05,2]
[350464747,1737901832492,-1506.23522,9.912e-05,2]
[350464748,1737901832503,-2279.60011745,9.912e-05,2]
[350464749,1737901832513,-250.0,9.912e-05,2]
[350464750,1737901832522,-194.76,9.969e-05,2]
[350464751,1737901832532,-96.45268755,9.971e-05,2]
[350464752,1737901832544,-536.1,9.971e-05,2]
[350464753,1737901832574,-259.0,9.971e-05,2]
[350464754,1737901832586,-2894.2826499,9.971e-05,2]
[350464755,1737901832596,-23900.0,9.971e-05,2]
[350464756,1737901832605,-1382.33,9.971e-05,2]
[350464757,1737901832614,-3173.38735009,9.971e-05,2]
[350464758,1737901832761,-982.94264991,9.971e-05,2]
[350464759,1737901832772,-2999.03,9.993e-05,2]
[350464760,1737901832781,-499.99,9.993e-05,2]
[350464761,1737901832791,-999.99,9.993e-05,2]
[350464762,1737901832800,-1516.0,9.993e-05,2]
[350464763,1737901832809,-14568.0,9.993e-05,2]
[350464764,1737901832819,-9043.02,9.993e-05,2]
[350464765,1737901832828,-377.71,9.993e-05,2]
[350464766,1737901832837,-150.99,9.993e-05,2]
[350464767,1737901832847,-9999.99,9.993e-05,2]
[350464769,1737901832856,-150.99,9.993e-05,2]
[350464771,1737901832865,-776.99,0.00010041,2]
[350464773,1737901832874,-170.92,0.00010042,2]
[350464775,1737901832883,-233.74,0.00010137,2]
[350464777,1737901832892,-177.09,0.00010234,2]
[350464778,1737901832902,-251.32,0.00010291,2]
[350464779,1737901832912,-150.0,0.00010378,2]
[350464780,1737901832921,-298.24,0.00010378,2]
[350464781,1737901832932,-251.26,0.00010462,2]
[350464783,1737901832941,-250.24,0.00010477,2]
[350464785,1737901832950,-414.0,0.00010554,2]
[350464787,1737901832959,-248.96,0.00010834,2]
[350464790,1737901832969,-600.0,0.000109,3]
[350464793,1737901832978,-500.0,0.00010932,2]
[350464795,1737901832987,-494.61492411,0.00010957,2]
[350464797,1737901832996,-500.0,0.00010958,2]
[350464799,1737901833006,-596.83810551,0.00010958,2]
[350464801,1737901833015,-500.0,0.00010958,2]
[350464803,1737901833024,-500.0,0.00010958,2]
[350464806,1737901833034,-500.0,0.00010958,2]
[350464809,1737901833044,-500.0,0.00010958,2]
[350464811,1737901833053,-606.93,0.00010958,2]
[350464813,1737901833063,-500.0,0.00010958,2]
[350464815,1737901833072,-500.0,0.00010958,2]
[350464816,1737901833082,-500.0,0.00010958,2]
[350464818,1737901833091,-500.0,0.00010958,2]
[350464820,1737901833100,-500.0,0.00010958,2]
[350464822,1737901833110,-500.0,0.00010958,2]
[350464824,1737901833120,-514.81,0.00010958,2]
[350464826,1737901833130,-500.0,0.00010958,2]
[350464828,1737901833140,-631.28895869,0.00010958,2]
[350464830,1737901833153,-500.0,0.00010958,2]
[350464832,1737901833163,-554.03,0.00010958,2]
[350464834,1737901833173,-500.0,0.00010958,2]
[350464836,1737901833183,-500.0,0.00010958,2]
[350464838,1737901833193,-500.0,0.00010958,2]
[350464840,1737901833203,-500.0,0.00010958,2]
[350464842,1737901833212,-554.1753148,0.00010958,2]
[350464844,1737901833222,-500.0,0.00010958,2]
[350464846,1737901833232,-500.0,0.00010958,2]
[350464848,1737901833242,-468.8246174,0.00010958,2]
[350464850,1737901833251,-287.85,0.00010958,2]
[350464853,1737901833263,-500.0,0.00010958,2]
[350464854,1737901833272,-500.0,0.00010958,2]
[350464855,1737901833281,-500.0,0.00010958,2]
[350464856,1737901833290,-500.0,0.00010958,2]
[350464857,1737901833299,-500.0,0.00010958,2]
[350464858,1737901833308,-500.0,0.00010958,2]
[350464859,1737901833317,-500.0,0.00010958,2]
[350464860,1737901833327,-500.0,0.00010958,2]
[350464861,1737901833336,-500.0,0.00010958,2]
[350464862,1737901833345,-500.0,0.00010958,2]
[350464863,1737901833354,-429.77,0.00010958,2]
[350464864,1737901833363,-500.0,0.00010958,2]
[350464865,1737901833372,-593.70906925,0.00010958,2]
[350464866,1737901833380,-500.0,0.00010958,2]
[350464867,1737901833389,-500.0,0.00010958,2]
[350464868,1737901833398,-500.0,0.00010958,2]
[350464869,1737901833407,-500.0,0.00010958,2]
[350464870,1737901833416,-500.0,0.00010958,2]
[350464871,1737901833425,-500.0,0.00010958,2]
[350464873,1737901833434,-500.0,0.00010958,2]
[350464875,1737901833443,-500.0,0.00010958,2]
[350464877,1737901833452,-502.26365941,0.00010958,2]
[350464879,1737901833461,-500.0,0.00010958,2]
[350464881,1737901833472,-500.0,0.00010958,2]
[350464883,1737901833481,-500.0,0.00010958,2]
[350464884,1737901833491,-500.0,0.00010958,2]
[350464886,1737901833501,-500.0,0.00010958,2]
[350464888,1737901833510,-500.0,0.00010958,2]
[350464890,1737901833519,-500.0,0.00010958,2]
[350464893,1737901833529,-500.0,0.00010958,2]
[350464895,1737901833539,-500.0,0.00010958,2]
[350464897,1737901833548,-319.19748441,0.00010958,2]
[350464899,1737901833558,-500.0,0.00010958,2]
[350464900,1737901833567,-500.0,0.00010958,2]
[350464902,1737901833576,-500.0,0.00010958,2]
[350464904,1737901833586,-500.0,0.00010958,2]
[350464906,1737901833595,-500.0,0.00010958,2]
[350464908,1737901833604,-500.0,0.00010958,2]
[350464910,1737901833613,-218.03949234,0.00010958,2]
[350464985,1737901838292,-1016.65453562,0.0001085,2]
[350464986,1737901838303,-535.08769391,0.0001085,2]
[350464987,1737901838400,-1448.25777047,0.0001085,2]
[350464988,1737901838410,-3247.76846975,0.000109,2]
[350464989,1737901838418,-3247.76846961,0.00010934,2]
[350464990,1737901838428,-281.96050766,0.00010958,2]
[350464991,1737901838439,-500.0,0.00010958,2]
[350464992,1737901838448,-503.78059945,0.00010958,2]
[350464993,1737901838458,-500.0,0.00010958,2]
[350464994,1737901838467,-500.0,0.00010958,2]
[350464995,1737901838476,-500.0,0.00010958,2]
[350464996,1737901838485,-500.0,0.00010958,2]
[350464997,1737901838495,-587.6,0.00010958,2]
[350464998,1737901838506,-500.0,0.00010958,2]
[350464999,1737901838516,-500.0,0.00010958,2]
[350465000,1737901838526,-500.0,0.00010958,2]
[350465001,1737901838536,-500.0,0.00010958,2]
[350465002,1737901838545,-500.0,0.00010958,2]
[350465003,1737901838555,-500.0,0.00010958,2]
[350465004,1737901838565,-500.0,0.00010958,2]
[350465005,1737901838574,-561.80078946,0.00010958,2]
[350465006,1737901838583,-500.0,0.00010958,2]
[350465007,1737901838593,-500.0,0.00010958,2]
[350465008,1737901838602,-500.0,0.00010958,2]
[350465009,1737901838611,-500.0,0.00010958,2]
[350465010,1737901838620,-500.0,0.00010958,2]
[350465011,1737901838630,-500.0,0.00010958,2]
[350465012,1737901838641,-500.0,0.00010958,2]
[350465013,1737901838651,-500.0,0.00010958,2]
[350465014,1737901838660,-500.0,0.00010958,2]
[350465015,1737901838669,-500.0,0.00010958,2]
[350465016,1737901838678,-500.0,0.00010958,2]
[350465017,1737901838687,-448.29191417,0.00010958,2]
[350465020,1737901838696,-500.0,0.00010958,2]
[350465022,1737901838705,-511.00143976,0.00010958,2]
[350465025,1737901838714,-500.0,0.00010958,2]
[350465027,1737901838724,-500.0,0.00010958,2]
[350465029,1737901838734,-1000.0,0.00010958,2]
[350465030,1737901838743,-500.0,0.00010958,2]
[350465031,1737901838752,-500.0,0.00010958,2]
[350465032,1737901838761,-500.0,0.00010958,2]
[350465033,1737901838770,-1168.85,0.00010958,2]
[350465034,1737901838779,-500.0,0.00010958,2]
[350465035,1737901838788,-500.0,0.00010958,2]
[350465036,1737901838798,-500.0,0.00010958,2]
[350465037,1737901838807,-500.0,0.00010958,2]
[350465038,1737901838816,-500.0,0.00010958,2]
[350465039,1737901838826,-500.0,0.00010958,2]
[350465040,1737901838835,-500.0,0.00010958,2]
[350465041,1737901838844,-500.0,0.00010958,2]
[350465042,1737901838853,-500.0,0.00010958,2]
[350465043,1737901838863,-500.0,0.00010958,2]
[350465044,1737901838872,-500.0,0.00010958,2]
[350465045,1737901838882,-500.0,0.00010958,2]
[350465046,1737901838891,-848.36,0.00010958,2]
[350465047,1737901838900,-640.31968008,0.00010958,2]
[350465048,1737901838909,-830.59,0.00010958,2]
[350465049,1737901838919,-500.0,0.00010958,2]
[350465050,1737901838927,-500.0,0.00010958,2]
[350465051,1737901838938,-587.22,0.00010958,2]
[350465052,1737901838948,-293.704887,0.00010958,2]
[350465053,1737901838958,-500.0,0.00010958,2]
[350465054,1737901838968,-500.0,0.00010958,2]
[350465055,1737901838977,-500.0,0.00010958,2]
[350465056,1737901838986,-500.0,0.00010958,2]
[350465057,1737901838995,-500.0,0.00010958,2]
[350465058,1737901839004,-1258.73,0.00010958,2]
[350465059,1737901839014,-443.27553599,0.00010958,2]
[350465063,1737901840375,-56.72446401,0.00010958,2]
[350465064,1737901840385,-2828.52,0.00010958,2]
[350465065,1737901840394,-500.0,0.00010958,2]
[350465066,1737901840404,-500.0,0.00010958,2]
[350465067,1737901840413,-500.0,0.00010958,2]
[350465068,1737901840423,-500.0,0.00010958,2]
[350465069,1737901840432,-500.0,0.00010958,2]
[350465070,1737901840451,-500.0,0.00010958,2]
[350465071,1737901840461,-500.0,0.00010958,2]
[350465072,1737901840471,-500.0,0.00010958,2]
[350465073,1737901840480,-500.0,0.00010958,2]
[350465074,1737901840490,-344.63721683,0.00010958,2]
[350465075,1737901840503,-155.36278317,0.00010958,2]
[350465076,1737901840512,-500.0,0.00010958,2]
[350465077,1737901840521,-354.41541622,0.00010958,2]
[350465078,1737901840543,-145.58458378,0.00010958,2]
[350465079,1737901840552,-500.0,0.00010958,2]
[350465080,1737901840562,-182.36125771,0.00010958,2]
[350465081,1737901840582,-317.63874229,0.00010958,2]
[350465082,1737901840592,-500.0,0.00010958,2]
[350465083,1737901840601,-948.67125771,0.00010958,2]
[350465084,1737901840644,-1601.96874229,0.00010958,2]
[350465085,1737901840654,-500.0,0.00010958,2]
[350465086,1737901840663,-500.0,0.00010958,2]
[350465087,1737901840673,-648.77,0.00010958,2]
[350465088,1737901840682,-500.0,0.00010958,2]
[350465089,1737901840692,-500.0,0.00010958,2]
[350465090,1737901840701,-361.65277479,0.00010958,2]
[350465091,1737901840710,-500.0,0.00010958,2]
[350465092,1737901840720,-142.60848292,0.00010958,2]
[350465093,1737901840739,-331.8624,0.00010958,2]
[350465094,1737901840826,-25.52911708,0.00010958,2]
[350465095,1737901840835,-500.0,0.00010958,2]
[350465096,1737901840844,-500.0,0.00010958,2]
[350465097,1737901840854,-500.0,0.00010958,2]
[350465098,1737901840864,-500.0,0.00010958,2]
[350465099,1737901840873,-241.069219,0.00010958,2]
[350465100,1737901840883,-3018.28,0.00010958,2]
[350465101,1737901840893,-500.0,0.00010958,2]
[350465102,1737901840902,-500.0,0.00010958,2]
[350465104,1737901840911,-648.17,0.00010958,2]
[350465106,1737901840921,-500.0,0.00010958,2]
[350465108,1737901840930,-500.0,0.00010958,2]
[350465110,1737901840940,-661.52,0.00010958,2]
[350465112,1737901840949,-500.0,0.00010958,2]
[350465114,1737901840958,-503.23292232,0.00010958,2]
[350465116,1737901840968,-500.0,0.00010958,2]
[350465118,1737901840977,-1669.8,0.00010958,2]
[350465120,1737901840986,-500.0,0.00010958,2]
[350465122,1737901840995,-500.0,0.00010958,2]
[350465124,1737901841005,-280.63622403,0.00010958,2]
[350465195,1737901843436,-219.36377597,0.00010958,2]
[350465196,1737901843446,-500.0,0.00010958,2]
[350465197,1737901843456,-500.0,0.00010958,2]
[350465198,1737901843466,-500.0,0.00010958,2]
[350465199,1737901843475,-537.50521776,0.00010958,2]
[350465200,1737901843484,-500.0,0.00010958,2]
[350465201,1737901843493,-500.0,0.00010958,2]
[350465202,1737901843503,-500.0,0.00010958,2]
[350465203,1737901843512,-831.87,0.00010958,2]
[350465204,1737901843521,-2059.39,0.00010958,2]
[350465205,1737901843531,-500.0,0.00010958,2]
[350465206,1737901843540,-500.0,0.00010958,2]
[350465207,1737901843550,-500.0,0.00010958,2]
[350465208,1737901843559,-500.0,0.00010958,2]
[350465209,1737901843569,-1928.52,0.00010958,2]
[350465210,1737901843578,-537.06505496,0.00010958,2]
[350465211,1737901843588,-509.27329617,0.00010958,2]
[350465212,1737901843597,-796.88,0.00010958,2]
[350465213,1737901843607,-500.0,0.00010958,2]
[350465214,1737901843616,-5512.29,0.00010958,2]
[350465215,1737901843881,-500.0,0.00010958,2]
[350465216,1737901843891,-1713.38,0.00010958,2]
[350465217,1737901843901,-500.0,0.00010958,2]
[350465218,1737901843911,-500.0,0.00010958,2]
[350465219,1737901843921,-552.24,0.00010958,2]
[350465220,1737901843931,-500.0,0.00010958,2]
[350465221,1737901843940,-2585.18,0.00010958,2]
[350465222,1737901843950,-4528.15,0.00010958,2]
[350465223,1737901843959,-634.48766436,0.00010958,2]
[350465224,1737901843969,-500.0,0.00010958,2]
[350465225,1737901843978,-1816.22,0.00010958,2]
[350465226,1737901843988,-500.0,0.00010958,2]
[350465227,1737901843998,-500.0,0.00010958,2]
[350465228,1737901844007,-500.0,0.00010958,2]
[350465229,1737901844016,-500.0,0.00010958,2]
[350465230,1737901844026,-500.0,0.00010958,2]